bitfinex/quotes_SOLUSD_20240912
["timestamp","ask_amount","ask_price","bid_price","bid_amount"]
[1726103463267,26.7003,134.33,134.28,30.478984]
[1726103463462,20.0,134.33,134.28,30.478984]
[1726103464164,26.7002,134.33,134.28,6.7021]
[1726103464369,20.0,134.33,134.27,23.4596]
[1726103465273,6.7004,134.32,134.27,23.4596]
[1726103465663,26.6999,134.33,134.27,23.4596]
[1726103466452,26.6999,134.33,134.28,6.7023]
[1726103467375,20.0,134.33,134.29,6.7016]
[1726103467576,20.0,134.33,134.29,16.7535]
[1726103467908,16.0118,134.34,134.29,16.7535]
[1726103467909,16.0118,134.34,134.3,23.776884]
[1726103468679,16.0118,134.34,134.32,6.7004]
[1726103468883,16.0118,134.34,134.31,6.7008]
[1726103469250,0.2636628,134.35,134.34,6.6994]
[1726103471280,0.2636628,134.35,134.34,8.18784145]
[1726103471859,0.2636628,134.35,134.34,6.6994]
[1726103474867,0.2636628,134.35,134.34,30.476284]
[1726103475072,0.2636628,134.35,134.34,31.9646543]
[1726103475464,0.2636628,134.35,134.34,32.0901443]
[1726103475794,0.2636628,134.35,134.34,30.727264]
[1726103476083,0.2636628,134.35,134.34,30.476284]
[1726103476285,0.2636628,134.35,134.34,30.601774]
[1726103478071,0.2636628,134.35,134.34,30.727264]
[1726103481278,0.2636628,134.35,134.34,32.2149961]
[1726103483169,6.28e-05,134.35,134.34,32.2149961]
[1726103483577,6.28e-05,134.35,134.34,422.5149961]
[1726103485073,0.2636628,134.39,134.34,422.5149961]
[1726103485074,0.2636628,134.39,134.38,23.4409]
[1726103485276,0.2636628,134.39,134.38,39.99415645]
[1726103487174,0.2636628,134.39,134.38,63.77104045]
[1726103488076,0.2636628,134.39,134.38,62.28337792]
[1726103490188,0.2636628,134.39,134.38,47.343274]
[1726103491912,0.2636628,134.39,134.38,23.4409]
[1726103494303,0.2636628,134.39,134.38,47.217784]
[1726103496089,0.2636628,134.39,134.37,6.6978]
[1726103496607,0.2636628,134.39,134.38,6.6974]
[1726103497201,0.2636628,134.39,134.38,30.474284]
[1726103500602,0.2636628,134.39,134.38,23.776884]
[1726103501990,0.2636628,134.39,134.38,30.474284]
[1726103502296,0.2636628,134.39,134.38,6.6974]
[1726103506795,0.2636628,134.39,134.37,16.7439]
[1726103507118,0.2636628,134.39,134.37,23.4417]
[1726103510219,0.2636628,134.39,134.38,6.6974]
[1726103513920,0.2636628,134.39,134.38,30.474284]
[1726103514388,0.2636628,134.39,134.38,45.53987792]
[1726103518318,0.2636628,134.39,134.38,30.474284]
[1726103519032,0.2636628,134.39,134.38,6.6974]
[1726103520404,0.2636628,134.39,134.38,30.474284]
[1726103520609,0.2636628,134.39,134.38,6.6974]
[1726103521327,0.2636628,134.39,134.37,16.7439]
[1726103521627,0.2636628,134.39,134.37,23.4413]
[1726103521830,0.2636628,134.39,134.38,6.6974]
[1726103522405,0.2636628,134.39,134.33,16.7485]
[1726103522605,0.2636628,134.39,134.35,6.6984]
[1726103522829,0.2636628,134.39,134.36,6.6982]
[1726103523538,16.6433,134.38,134.36,6.6982]
[1726103525429,16.6433,134.38,134.37,6.6979]
[1726103525809,16.6433,134.38,134.36,23.4438]
[1726103526110,16.6433,134.38,134.35,6.6988]
[1726103526614,16.6433,134.38,134.33,6.6994]
[1726103527028,23.3407,134.38,134.33,6.6994]
[1726103528130,16.6433,134.38,134.33,6.6994]
[1726103528932,16.6433,134.38,134.35,6.6985]
[1726103529629,16.6433,134.38,134.34,6.6993]
[1726103530734,23.3408,134.38,134.32,23.4498]
[1726103530920,26.529,134.37,134.32,23.4501]
[1726103531112,33.227,134.37,134.32,23.4501]
[1726103531312,6.6985,134.36,134.32,16.7498]
[1726103531516,33.2269,134.37,134.32,23.45]
[1726103532739,16.5753,134.35,134.29,16.7546]
[1726103533737,16.5753,134.35,134.3,6.7009]
[1726103533936,23.2744,134.35,134.3,6.7009]
[1726103536243,16.5753,134.35,134.3,6.7009]
[1726103537712,16.5753,134.35,134.31,6.7008]
[1726103539627,23.2742,134.35,134.3,6.7013]
[1726103540544,6.6995,134.34,134.29,23.4564]
[1726103541243,16.5753,134.35,134.3,6.7012]
[1726103541439,20.0,134.34,134.3,6.7012]
[1726103545526,26.6995,134.34,134.3,6.7012]
[1726103548349,20.0,134.34,134.3,6.7012]
[1726103548549,20.0,134.34,134.31,6.7006]
[1726103549863,20.0,134.34,134.3,6.7013]
[1726103550754,26.6994,134.34,134.29,23.4564]
[1726103550965,22.336,134.32,134.29,16.7546]
[1726103556471,22.336,134.32,134.29,23.4561]
[1726103557468,22.336,134.32,134.29,16.7546]
[1726103564957,22.336,134.32,134.25,0.2636628]
[1726103564958,22.336,134.32,134.27,6.7027]
[1726103565159,20.0,134.31,134.27,6.7027]
[1726103565778,26.7012,134.31,134.26,23.4613]
[1726103573683,20.0,134.31,134.25,0.2636628]
[1726103573864,6.7024,134.28,134.25,0.2636628]
[1726103574772,6.7019,134.29,134.25,6.9673628]
[1726103574956,20.0,134.28,134.25,6.9673628]
[1726103575282,20.0,134.28,134.26,6.7033]
[1726103575600,20.0,134.28,134.25,6.9673628]
[1726103575760,20.0,134.29,134.25,6.9673628]
[1726103576586,26.7021,134.29,134.25,0.2636628]
[1726103577258,20.0,134.29,134.25,0.2636628]
[1726103577468,21.4362,134.28,134.25,0.2636628]
[1726103577761,6.7034,134.26,134.25,0.2636628]
[1726103578070,26.7034,134.26,134.25,0.2636628]
[1726103580988,26.7034,134.26,134.21,0.2636628]
[1726103580989,15.8137,134.25,134.21,0.2636628]
[1726103581155,26.7049,134.24,134.21,0.2636628]
[1726103582080,6.7049,134.23,134.21,0.2636628]
[1726103586280,6.7054,134.22,134.21,0.2636628]
[1726103586483,6.7054,134.22,134.17,17.0329628]
[1726103586484,16.1582,134.21,134.17,17.0329628]
[1726103587272,22.8641,134.21,134.17,17.0329628]
[1726103588568,6.7065,134.2,134.17,0.2636628]
[1726103588882,20.0,134.19,134.17,0.2636628]
[1726103589571,20.0,134.2,134.17,0.2636628]
[1726103590693,20.0,134.2,134.18,6.7073]
[1726103591065,20.0,134.2,134.19,6.7069]
[1726103591283,3.25852223,134.26,134.18,16.7677]
[1726103591284,15.5981,134.25,134.18,16.7677]
[1726103591485,6.7048,134.24,134.19,6.7068]
[1726103592467,20.0,134.23,134.19,6.7068]
[1726103592668,20.0,134.23,134.2,6.7062]
[1726103592868,20.0,134.24,134.2,6.7062]
[1726103594489,20.0,134.24,134.2,16.7651]
[1726103594693,15.5981,134.25,134.22,6.7049]
[1726103595782,15.5981,134.25,134.21,6.7058]
[1726103596290,15.5981,134.25,134.22,6.7054]
[1726103598082,15.5981,134.25,134.23,6.7045]
[1726103598989,15.5981,134.25,134.22,23.4679]
[1726103599488,15.5981,134.25,134.22,16.7626]
[1726103599891,15.5981,134.25,134.22,23.4679]
[1726103600083,15.5981,134.25,134.22,16.7626]
[1726103600282,15.5981,134.25,134.23,6.7048]
[1726103600790,15.5981,134.25,134.22,23.4679]
[1726103600998,16.0583,134.28,134.25,6.7039]
[1726103601193,16.0583,134.28,134.27,6.7029]
[1726103601388,6.8719628,134.31,134.27,6.7029]
[1726103601389,22.0019628,134.31,134.27,6.7029]
[1726103601995,15.3936628,134.31,134.27,6.7029]
[1726103602512,22.0946628,134.31,134.26,6.7033]
[1726103602806,20.0,134.3,134.26,6.7033]
[1726103603386,0.2636628,134.31,134.27,18.2463671]
[1726103604413,0.2636628,134.31,134.29,6.7017]
[1726103606385,0.2636628,134.31,134.3,6.7014]
[1726103609683,0.2636628,134.31,134.27,16.7569]
[1726103610403,0.2636628,134.31,134.28,23.776884]
[1726103611306,0.2636628,134.31,134.27,16.7569]
[1726103611488,0.2636628,134.31,134.28,6.7023]
[1726103612102,0.2636628,134.31,134.29,6.7017]
[1726103612707,0.2636628,134.31,134.3,6.7014]
[1726103622819,0.2636628,134.31,134.29,16.7539]
[1726103623314,0.2636628,134.31,134.3,6.7014]
[1726103629421,0.2636628,134.31,134.29,16.7539]
[1726103631441,0.2636628,134.31,134.3,6.7014]
[1726103634424,0.2636628,134.31,134.29,16.7539]
[1726103634735,0.2636628,134.31,134.27,6.7028]
[1726103635120,0.2636628,134.31,134.28,6.7021]
[1726103637035,0.2636628,134.31,134.29,6.7018]
[1726103640911,0.2636628,134.31,134.28,6.7022]
[1726103642316,22.3455,134.3,134.25,6.7038]
[1726103642844,26.7019,134.29,134.24,23.4649]
[1726103643952,15.6437,134.27,134.18,16.7683]
[1726103644125,20.0,134.26,134.18,16.7683]
[1726103644326,20.0,134.26,134.22,6.7053]
[1726103644714,20.0,134.26,134.23,6.7049]
[1726103645125,15.6437,134.27,134.25,6.7039]
[1726103645334,16.5014,134.3,134.26,6.7034]
[1726103645649,20.0,134.29,134.26,6.7034]
[1726103646519,20.0,134.29,134.24,23.776884]
[1726103646720,20.0,134.29,134.25,6.7038]
[1726103650337,20.0,134.29,134.26,6.7033]
[1726103650733,16.5014,134.3,134.26,6.7033]
[1726103652148,23.2028,134.3,134.24,23.776884]
[1726103653223,16.5014,134.3,134.26,6.7033]
[1726103654939,16.5014,134.3,134.27,6.7027]
[1726103657344,16.5014,134.3,134.28,6.7022]
[1726103657546,0.2636628,134.31,134.29,1.48917013]
[1726103657752,0.2636628,134.31,134.3,1.4889288]
[1726103658231,0.2636628,134.31,134.28,25.26580955]
[1726103658830,0.2636628,134.31,134.29,16.7538]
[1726103659365,0.2636628,134.31,134.26,16.7582]
[1726103660247,0.2636628,134.31,134.27,6.7028]
[1726103662450,0.2636628,134.31,134.28,6.7023]
[1726103664959,0.2636628,134.31,134.27,6.7028]
[1726103666738,6.9645628,134.31,134.26,23.4615]
[1726103669766,0.2636628,134.31,134.27,6.7027]
[1726103669963,0.2636628,134.31,134.28,16.7553]
[1726103669964,20.2636628,134.31,134.28,16.7553]
[1726103670264,0.2636628,134.31,134.28,16.7553]
[1726103670459,0.2636628,134.31,134.29,1.48695812]
[1726103670861,0.2636628,134.31,134.28,16.7553]
[1726103671059,0.2636628,134.31,134.3,6.7014]
[1726103671853,0.2636628,134.31,134.28,16.7553]
[1726103672165,0.2636628,134.31,134.29,6.7018]
[1726103674177,0.2636628,134.31,134.28,23.4574]
[1726103674342,0.2636628,134.31,134.28,16.7553]
[1726103674667,0.2636628,134.31,134.3,6.7014]
[1726103677975,0.2636628,134.31,134.3,30.478284]
[1726103680574,0.2636628,134.31,134.29,23.776884]
[1726103680749,0.2636628,134.31,134.29,30.478384]
[1726103681684,0.2636628,134.31,134.3,6.7014]
[1726103683578,0.2636628,134.31,134.28,16.7553]
[1726103683978,0.2636628,134.31,134.29,6.7018]
[1726103685360,0.2636628,134.31,134.3,6.7014]
[1726103690261,0.2636628,134.31,134.29,6.7018]
[1726103690469,0.2636628,134.31,134.28,16.7553]
[1726103691362,0.2636628,134.31,134.3,6.7014]
[1726103692402,0.2636628,134.31,134.29,6.7018]
[1726103692700,0.2636628,134.31,134.28,23.4576]
[1726103693083,0.2636628,134.31,134.28,16.7553]
[1726103693892,0.2636628,134.31,134.28,23.4576]
[1726103699611,0.2636628,134.31,134.29,6.7018]
[1726103700582,0.2636628,134.31,134.3,6.7014]
[1726103702514,0.2636628,134.31,134.3,30.478284]
[1726103704322,0.2636628,134.31,134.3,6.7014]
[1726103705189,0.2636628,134.31,134.28,16.7553]
[1726103705190,0.2636628,134.31,134.29,6.7018]
[1726103705889,0.2636628,134.31,134.3,6.7014]
[1726103711023,0.2636628,134.31,134.28,16.7553]
[1726103711204,0.2636628,134.31,134.28,23.4576]
[1726103711408,0.2636628,134.31,134.28,16.7553]
[1726103712417,0.2636628,134.31,134.25,23.463]
[1726103712613,16.8905628,134.31,134.25,23.463]
[1726103713520,23.5914628,134.31,134.25,23.463]
[1726103714201,16.8905628,134.31,134.25,23.463]
[1726103714912,23.5915628,134.31,134.25,23.463]
[1726103715923,6.7015,134.3,134.24,6.7043]
[1726103716126,20.0,134.29,134.23,4.15170365]
[1726103716309,16.8905628,134.31,134.26,6.703]
[1726103716622,20.0,134.3,134.26,6.703]
[1726103717829,20.0,134.3,134.27,6.7028]
[1726103718128,0.2636628,134.31,134.28,6.7022]
[1726103718930,0.2636628,134.31,134.3,6.7014]
[1726103719101,0.2636628,134.31,134.3,30.478284]
[1726103719719,0.2636628,134.31,134.3,30.729264]
[1726103719922,0.2636628,134.31,134.3,31.7543194]
[1726103720229,0.2636628,134.31,134.3,35.90137663]
[1726103720413,0.2636628,134.31,134.3,30.729264]
[1726103720615,0.2636628,134.31,134.3,30.603774]
[1726103723937,0.2636628,134.31,134.3,62.07579705]
[1726103724317,0.2636628,134.35,134.3,62.07579705]
[1726103724318,0.2636628,134.35,134.34,47.224784]
[1726103724626,0.2636628,134.35,134.34,48.71283221]
[1726103724802,0.2636628,134.35,134.34,48.83832221]
[1726103725211,0.2636628,134.35,134.34,47.475764]
[1726103725410,0.2636628,134.35,134.34,70.78876704]
[1726103726032,0.2636628,134.35,134.34,47.475764]
[1726103726232,0.2636628,134.35,134.34,47.350274]
[1726103727627,0.2636628,134.35,134.34,47.475764]
[1726103729802,0.2636628,134.35,134.34,47.350274]
[1726103734131,0.2636628,134.35,134.34,47.224784]
[1726103735538,0.2636628,134.35,134.34,47.350274]
[1726103739940,0.2636628,134.35,134.34,47.224784]
[1726103744242,0.2636628,134.35,134.34,47.475764]
[1726103745947,0.2636628,134.35,134.34,47.224784]
[1726103747241,0.2636628,134.35,134.34,47.475764]
[1726103747841,0.2636628,134.35,134.34,48.96351256]
[1726103748447,0.2636628,134.35,134.34,47.475764]
[1726103749953,15.2896,134.42,134.38,56.928]
[1726103750252,15.2896,134.42,134.38,95.74730082]
[1726103750765,15.2896,134.42,134.38,95.87279082]
[1726103750951,0.2636628,134.44,134.38,95.87279082]
[1726103753260,0.2636628,134.44,134.38,145.87279082]
[1726103753552,0.2636628,134.44,134.38,152.17939082]
[1726103756061,0.2636628,134.44,134.38,542.47939082]
[1726103761063,6.28e-05,134.39,134.38,542.47939082]
[1726103761364,0.2636628,134.44,134.43,80.683684]
[1726103761527,0.2636628,134.44,134.43,95.85159082]
[1726103765061,0.2636628,134.44,134.43,486.15159082]
[1726103765556,6.83776734,134.48,134.43,486.15159082]
[1726103765557,6.83776734,134.48,134.47,50.0]
[1726103765855,6.83776734,134.48,134.47,88.94479082]
[1726103766238,6.83776734,134.48,134.47,112.36999082]
[1726103766429,6.83776734,134.48,134.47,134.76999082]
[1726103767263,0.2811617,134.51,134.49,6.6914]
[1726103767545,0.4352688,134.51,134.47,437.752664]
[1726103767741,0.4352688,134.51,134.47,407.0323]
[1726103768165,7.1261688,134.51,134.47,390.3]
[1726103768368,0.4352688,134.51,134.47,390.3]
[1726103768777,0.4352688,134.51,134.47,396.9929]
[1726103769650,0.4352688,134.51,134.44,16.7359]
[1726103769651,21.4378,134.5,134.44,16.7359]
[1726103769846,28.1293,134.5,134.44,16.7359]
[1726103770460,6.6919,134.49,134.44,16.7359]
[1726103771454,6.6919,134.49,134.43,6.6948]
[1726103771771,6.693,134.47,134.41,23.435]
[1726103771960,22.0757,134.46,134.41,16.7396]
[1726103772284,6.6939,134.45,134.4,390.3]
[1726103772449,6.3212,134.44,134.4,390.3]
[1726103772848,6.3212,134.44,134.4,396.9964]
[1726103773367,6.3212,134.44,134.4,6.6964]
[1726103774072,6.3212,134.44,134.37,24.47620532]
[1726103774073,6.3212,134.44,134.38,23.776884]
[1726103775380,6.3212,134.44,134.4,6.6964]
[1726103776780,6.3212,134.44,134.39,6.6968]
[1726103776953,16.2832,134.42,134.37,23.4417]
[1726103778571,22.9786,134.42,134.37,16.7439]
[1726103778775,22.9786,134.42,134.35,6.8254546]
[1726103779473,6.696,134.41,134.35,6.8254546]
[1726103779659,16.2832,134.42,134.35,0.1270546]
[1726103779857,6.6964,134.4,134.35,0.1270546]
[1726103780678,6.6959,134.41,134.35,6.8258546]
[1726103781568,22.9787,134.42,134.36,6.6983]
[1726103781761,16.2832,134.42,134.36,16.7449]
[1726103782075,16.2832,134.42,134.39,6.6964]
[1726103782274,16.2832,134.42,134.38,16.7425]
[1726103782275,16.2832,134.42,134.41,6.6959]
[1726103782580,15.2777,134.45,134.41,23.776884]
[1726103783091,15.2777,134.45,134.42,6.6954]
[1726103784769,15.2777,134.45,134.43,6.6946]
[1726103785361,15.2777,134.45,134.44,6.6944]
[1726103788469,0.1541071,134.46,134.45,6.6939]
[1726103788981,0.1541071,134.46,134.45,30.470784]
[1726103790255,0.1541071,134.46,134.45,30.721764]
[1726103791681,0.1541071,134.46,134.45,30.596274]
[1726103794096,0.1541071,134.46,134.45,6.6939]
[1726103796396,0.1541071,134.46,134.45,30.470784]
[1726103798901,0.1541071,134.46,134.45,6.6939]
[1726103799486,0.1541071,134.46,134.45,30.470784]
[1726103809111,0.1541071,134.46,134.45,31.07412594]
[1726103809982,0.1541071,134.46,134.45,30.596274]
[1726103817414,0.1541071,134.46,134.45,30.721764]
[1726103819089,0.1541071,134.46,134.45,30.596274]
[1726103820812,0.1541071,134.46,134.45,30.470784]
[1726103821057,0.1541071,134.46,134.45,6.6939]
[1726103822016,0.1541071,134.46,134.45,8.18073818]
[1726103822221,0.1541071,134.46,134.45,31.95762218]
[1726103823105,0.1541071,134.46,134.45,30.470784]
[1726103823436,0.1541071,134.46,134.45,6.6939]
[1726103823633,0.1541071,134.46,134.45,30.470784]
[1726103823822,7.1e-06,134.46,134.45,45.61465267]
[1726103824011,7.1e-06,134.46,134.45,30.721764]
[1726103824327,7.1e-06,134.46,134.45,45.61465267]
[1726103825025,7.1e-06,134.46,134.45,421.021764]
[1726103825222,7.1e-06,134.46,134.45,485.91465267]
[1726103825410,7.1e-06,134.46,134.45,491.22862918]
[1726103825728,7.1e-06,134.46,134.45,515.34293486]
[1726103826235,7.1e-06,134.46,134.45,445.34293486]
[1726103826411,7.1e-06,134.46,134.45,495.34293486]
[1726103827349,7.1e-06,134.46,134.45,490.02895835]
[1726103827520,7.1e-06,134.46,134.45,485.91465267]
[1726103827746,16.0130617,134.51,134.45,485.91465267]
[1726103827747,15.7319,134.51,134.5,23.42]
[1726103828034,15.7319,134.51,134.5,47.196884]
[1726103828035,15.9453507,134.51,134.5,47.196884]
[1726103828439,0.2134507,134.51,134.5,47.196884]
[1726103830737,0.2134507,134.51,134.5,47.57202986]
[1726103832224,0.2134507,134.51,134.5,47.322374]
[1726103833836,0.2134507,134.51,134.5,62.34075267]
[1726103834430,0.2134507,134.51,134.5,47.196884]
[1726103834716,0.2134507,134.51,134.5,23.42]
[1726103836220,0.2134507,134.51,134.5,47.322374]
[1726103836519,0.2134507,134.51,134.5,47.196884]
[1726103840338,0.2134507,134.51,134.5,62.34075267]
[1726103840664,14.906043,134.58,134.57,6.6879]
[1726103840839,14.906043,134.58,134.57,8.17374067]
[1726103841451,14.906043,134.58,134.57,6.6879]
[1726103841880,14.406043,134.58,134.57,6.6879]
[1726103842361,0.1871703,134.63,134.59,16.7173]
[1726103842875,0.1871703,134.63,134.6,6.686]
[1726103843766,0.1871703,134.63,134.59,16.7173]
[1726103844277,20.1871703,134.63,134.56,6.6881]
[1726103844443,6.6855,134.62,134.56,6.6881]
[1726103844762,6.6861,134.61,134.56,6.6881]
[1726103844961,15.0853,134.6,134.56,6.6881]
[1726103845173,21.7718,134.6,134.55,16.7211]
[1726103845351,6.2938,134.59,134.53,6.6899]
[1726103845541,15.0853,134.58,134.53,6.6899]
[1726103846068,15.0853,134.58,134.52,6.6901]
[1726103846069,21.7727,134.58,134.52,6.6901]
[1726103846439,15.0853,134.58,134.53,6.6898]
[1726103846966,12.9808,134.59,134.47,16.9623169]
[1726103846967,22.6222,134.54,134.47,16.9623169]
[1726103847451,22.6222,134.54,134.5,16.7286]
[1726103847648,16.2386,134.54,134.53,6.6899]
[1726103851150,16.2386,134.54,134.53,23.4147]
[1726103851460,15.6115,134.59,134.53,16.7248]
[1726103851662,15.6115,134.59,134.55,6.6885]
[1726103851869,15.6115,134.59,134.56,1.4859892]
[1726103852284,15.6115,134.59,134.55,6.6885]
[1726103852444,15.6115,134.59,134.55,16.7213]
[1726103853273,15.6115,134.59,134.57,6.6879]
[1726103855374,15.6115,134.59,134.55,23.4098]
[1726103856475,15.6115,134.59,134.56,6.688]
[1726103857373,15.6115,134.59,134.55,23.4102]
[1726103858189,15.6115,134.59,134.56,6.6884]
[1726103859574,15.6115,134.59,134.55,16.7213]
[1726103859575,15.6115,134.59,134.57,6.6878]
[1726103860851,15.6115,134.59,134.56,6.6884]
[1726103861879,15.6115,134.59,134.55,16.7213]
[1726103862700,15.6115,134.59,134.58,6.6874]
[1726103864666,15.6115,134.59,134.56,6.6879]
[1726103865172,15.6115,134.59,134.55,23.4097]
[1726103865376,15.6115,134.59,134.57,6.6875]
[1726103866992,22.2985,134.59,134.55,23.4097]
[1726103867169,15.6115,134.59,134.55,23.4097]
[1726103867687,15.6115,134.59,134.56,6.6882]
[1726103868394,15.6115,134.59,134.57,6.6879]
[1726103869561,15.6115,134.59,134.56,6.6883]
[1726103870575,15.6115,134.59,134.57,6.6878]
[1726103871169,15.6115,134.59,134.58,6.6874]
[1726103871376,0.1871703,134.63,134.57,23.776884]
[1726103871377,15.5779,134.62,134.57,23.776884]
[1726103872092,15.5779,134.62,134.61,6.6859]
[1726103872282,15.5779,134.62,134.59,23.403]
[1726103873185,15.5779,134.62,134.6,6.6864]
[1726103875080,15.5779,134.62,134.59,23.4035]
[1726103876615,15.5779,134.62,134.6,7.85943263]
[1726103876778,15.5779,134.62,134.6,6.6864]
[1726103879103,15.5779,134.62,134.59,16.7166]
[1726103879104,15.5779,134.62,134.59,23.4035]
[1726103881502,15.5779,134.62,134.59,16.7166]
[1726103882182,20.0,134.61,134.57,6.6875]
[1726103882386,20.0,134.61,134.56,16.7205]
[1726103882603,20.0,134.61,134.58,6.687]
[1726103883997,20.0,134.61,134.56,16.7205]
[1726103885081,6.6865,134.6,134.56,23.4089]
[1726103885282,20.0,134.61,134.57,6.6878]
[1726103885559,20.0,134.61,134.56,16.7205]
[1726103886514,23.0315,134.6,134.53,16.7243]
[1726103886689,20.0,134.59,134.53,16.7243]
[1726103888385,26.6871,134.59,134.53,16.7243]
[1726103889381,26.6871,134.59,134.55,6.6889]
[1726103890305,26.6871,134.59,134.54,6.6894]
[1726103891798,26.6871,134.59,134.55,6.6889]
[1726103892507,20.0,134.59,134.55,6.6889]
[1726103895123,20.0,134.59,134.56,6.6884]
[1726103896316,20.0,134.59,134.55,6.6889]
[1726103896525,6.6875,134.58,134.53,23.4141]
[1726103896694,15.504,134.56,134.53,16.7243]
[1726103898099,15.504,134.56,134.55,6.6889]
[1726103901133,15.504,134.59,134.55,16.7213]
[1726103901308,15.504,134.59,134.58,6.6874]
[1726103901809,15.504,134.62,134.58,23.776884]
[1726103902007,15.504,134.62,134.61,6.6859]
[1726103903431,15.504,134.62,134.6,23.4024]
[1726103903606,15.504,134.62,134.61,6.6859]
[1726103904731,15.504,134.62,134.56,33.4413]
[1726103905028,15.504,134.62,134.57,16.7197]
[1726103905827,15.504,134.62,134.59,6.6868]
[1726103907053,15.504,134.62,134.6,6.6864]
[1726103909436,15.504,134.62,134.59,6.6869]
[1726103910518,15.504,134.62,134.57,23.4071]
[1726103910874,6.6859,134.61,134.57,16.7197]
[1726103911947,6.6859,134.61,134.56,6.6883]
[1726103911948,6.6865,134.6,134.55,6.6889]
[1726103912124,26.687,134.59,134.54,23.4127]
[1726103912331,22.7672,134.58,134.54,16.7233]
[1726103912521,20.0,134.57,134.54,16.7233]
[1726103915038,26.6879,134.57,134.52,6.69]
[1726103916654,6.6884,134.56,134.51,16.7273]
[1726103917762,6.3531,134.59,134.49,6.8658423]
[1726103917763,15.4592,134.54,134.49,6.8658423]
[1726103918633,20.0,134.53,134.49,0.1739423]
[1726103919751,26.6899,134.53,134.49,0.1739423]
[1726103921431,6.6904,134.52,134.49,0.1739423]
[1726103921632,20.0,134.51,134.49,0.1739423]
[1726103922043,28.64,134.54,134.49,0.1739423]
[1726103922260,20.0,134.53,134.49,0.1739423]
[1726103922445,6.6904,134.52,134.49,0.1739423]
[1726103923269,20.0,134.51,134.49,0.1739423]
[1726103926855,21.9502,134.54,134.49,0.1739423]
[1726103926856,20.0,134.53,134.49,0.1739423]
[1726103927246,26.69,134.53,134.49,0.1739423]
[1726103927863,6.6908,134.52,134.49,0.1739423]
[1726103929839,26.69,134.53,134.49,0.1739423]
[1726103932380,6.6909,134.51,134.49,0.1739423]
[1726103936468,6.6914,134.5,134.49,0.1739423]
[1726103937050,6.6914,134.5,134.45,6.6938]
[1726103937244,20.0,134.53,134.44,31.46143749]
[1726103937245,21.8953,134.49,134.44,31.46143749]
[1726103938558,21.8953,134.49,134.44,23.6932806]
[1726103938759,21.8953,134.49,134.45,6.6938]
[1726103939482,15.2033,134.49,134.45,6.6938]
[1726103940576,15.2033,134.49,134.44,16.9989806]
[1726103940577,15.2033,134.49,134.47,6.6928]
[1726103940788,16.3124,134.52,134.48,6.6924]
[1726103940971,20.0,134.51,134.49,6.6919]
[1726103941154,16.3124,134.52,134.49,6.6919]
[1726103942759,16.3124,134.52,134.48,23.4225]
[1726103944981,16.3124,134.52,134.49,6.6918]
[1726103945291,23.0925,134.57,134.5,16.7274]
[1726103945888,16.6358,134.57,134.5,16.7274]
[1726103946263,16.6358,134.57,134.53,6.6899]
[1726103946464,16.6358,134.57,134.47,40.509084]
[1726103946666,20.0,134.56,134.47,16.7322]
[1726103946859,6.0156,134.55,134.47,23.4251]
[1726103947101,6.6907,134.52,134.47,23.4251]
[1726103947267,6.6907,134.52,134.47,16.7322]
[1726103947589,22.2592,134.52,134.47,16.7322]
[1726103947890,15.5685,134.52,134.45,390.3]
[1726103948065,6.6915,134.5,134.45,390.3]
[1726103948264,6.6915,134.5,134.44,0.2633806]
[1726103948887,6.6921,134.49,134.44,0.2633806]
[1726103949097,20.0,134.48,134.44,0.2633806]
[1726103949402,26.6929,134.48,134.44,0.2633806]
[1726103950171,26.6929,134.48,134.42,6.6951]
[1726103950172,6.693,134.47,134.42,6.6951]
[1726103950392,6.693,134.47,134.4,23.7001806]
[1726103951096,6.693,134.47,134.41,6.6957]
[1726103952590,6.693,134.47,134.4,17.0042806]
[1726103952591,6.693,134.47,134.42,6.6953]